fUSD/lending_fUSD_20240115
["ID","MTS","AMOUNT","RATE_DAILY","PERIOD"]
[311696606,1705336310302,-500.0,0.00033698,4]
[311696607,1705336310312,-1418.11,0.00033698,4]
[311696608,1705336310322,-500.0,0.00033698,4]
[311696609,1705336310332,-830.13,0.00033698,4]
[311696610,1705336310342,-500.0,0.00033698,4]
[311696611,1705336310352,-500.0,0.00033698,4]
[311696612,1705336310363,-2067.56,0.00033698,4]
[311696613,1705336310373,-510.57,0.00033698,4]
[311696614,1705336310383,-500.0,0.00033698,4]
[311696615,1705336310393,-1235.79,0.00033698,4]
[311696616,1705336310404,-1605.48,0.00033698,4]
[311696617,1705336310414,-500.0,0.00033698,4]
[311696618,1705336310425,-500.0,0.00033698,4]
[311696619,1705336310435,-163.33117129,0.00033702,7]
[311696620,1705336310445,-152.0,0.00033703,4]
[311696621,1705336310456,-152.82548757,0.00033728,7]
[311696622,1705336310466,-450.0,0.0003374,3]
[311696623,1705336310477,-150.0,0.00033742,2]
[311696624,1705336310487,-163.33117129,0.00033761,7]
[311696625,1705336310498,-203.0,0.00033765,20]
[311696626,1705336310508,-157.41746226,0.00033768,7]
[311696627,1705336310518,-25000.0,0.0003377,2]
[311696628,1705336310528,-12210.17,0.0003377,7]
[311696629,1705336310539,-12210.17,0.0003377,7]
[311696630,1705336310549,-12210.17,0.0003377,7]
[311696631,1705336310559,-12210.17,0.0003377,7]
[311696632,1705336310570,-153.84,0.0003379,2]
[311696633,1705336310581,-214.0,0.00033836,2]
[311696634,1705336310594,-367.30400215,0.00033864,7]
[311696635,1705336310605,-162.54209167,0.00033866,7]
[311696636,1705336310616,-151.07627185,0.00033895,7]
[311696637,1705336310627,-170.92757607,0.00033941,7]
[311696638,1705336310638,-58000.0,0.00033956,3]
[311696639,1705336310649,-367.30400215,0.00033964,7]
[311696640,1705336310660,-58000.0,0.00033965,3]
[311696641,1705336310670,-500.0,0.00033972,4]
[311696642,1705336310681,-1005.03,0.00033972,4]
[311696643,1705336310693,-3947.23,0.00033972,4]
[311696644,1705336310704,-1541.94,0.00033972,4]
[311696645,1705336310715,-2029.28,0.00033972,4]
[311696646,1705336310725,-181.04163574,0.00033972,4]
[311696647,1705336310736,-500.0,0.00033972,4]
[311696648,1705336310746,-500.0,0.00033972,4]
[311696649,1705336310756,-500.0,0.00033972,4]
[311696650,1705336310767,-500.0,0.00033972,4]
[311696651,1705336310777,-500.0,0.00033972,4]
[311696652,1705336310787,-500.0,0.00033972,4]
[311696653,1705336310798,-500.0,0.00033972,4]
[311696654,1705336310808,-500.0,0.00033972,4]
[311696655,1705336310820,-500.0,0.00033972,4]
[311696656,1705336310830,-500.0,0.00033972,4]
[311696657,1705336310840,-500.0,0.00033972,4]
[311696658,1705336311105,-500.0,0.00033972,4]
[311696659,1705336311116,-946.21,0.00033972,4]
[311696660,1705336311126,-500.0,0.00033972,4]
[311696661,1705336311137,-659.8,0.00033972,4]
[311696662,1705336311147,-556.75,0.00033972,4]
[311696663,1705336311158,-500.0,0.00033972,4]
[311696664,1705336311169,-639.27,0.00033972,4]
[311696665,1705336311179,-500.0,0.00033972,4]
[311696666,1705336311190,-500.0,0.00033972,4]
[311696667,1705336311201,-500.0,0.00033972,4]
[311696668,1705336311211,-500.0,0.00033972,4]
[311696669,1705336311222,-500.0,0.00033972,4]
[311696670,1705336311232,-707.09,0.00033972,4]
[311696671,1705336311241,-500.0,0.00033972,4]
[311696672,1705336311251,-793.61,0.00033972,4]
[311696673,1705336311261,-633.61,0.00033972,4]
[311696674,1705336311271,-500.0,0.00033972,4]
[311696675,1705336311281,-538.67,0.00033972,4]
[311696676,1705336311292,-500.0,0.00033972,4]
[311696677,1705336311302,-500.0,0.00033972,4]
[311696678,1705336311313,-625.45,0.00033972,4]
[311696679,1705336311323,-500.0,0.00033972,4]
[311696680,1705336311333,-500.0,0.00033972,4]
[311696681,1705336311342,-500.0,0.00033972,4]
[311696682,1705336311352,-500.0,0.00033972,4]
[311696683,1705336311362,-504.41,0.00033972,4]
[311696684,1705336311372,-500.0,0.00033972,4]
[311696685,1705336311381,-500.0,0.00033972,4]
[311696686,1705336311391,-590.57,0.00033972,4]
[311696687,1705336311401,-518.59159631,0.00033972,4]
[311696688,1705336311410,-500.0,0.00033972,4]
[311696689,1705336311421,-504.99,0.00033972,4]
[311696690,1705336311431,-631.31,0.00033972,4]
[311696691,1705336311441,-500.0,0.00033972,4]
[311696692,1705336311451,-943.26,0.00033972,4]
[311696693,1705336311462,-534.45,0.00033972,4]
[311696694,1705336311473,-500.0,0.00033972,4]
[311696695,1705336311483,-500.0,0.00033972,4]
[311696696,1705336311494,-500.0,0.00033972,4]
[311696697,1705336311504,-500.0,0.00033972,4]
[311696698,1705336311514,-500.0,0.00033972,4]
[311696699,1705336311524,-500.0,0.00033972,4]
[311696700,1705336311534,-518.55,0.00033972,4]
[311696701,1705336311543,-500.0,0.00033972,4]
[311696702,1705336311553,-817.32,0.00033972,4]
[311696703,1705336311564,-503.98,0.00033972,4]
[311696704,1705336311575,-500.0,0.00033972,4]
[311696705,1705336311584,-500.0,0.00033972,4]
[311696706,1705336311597,-707.82,0.00033972,4]
[311696707,1705336311606,-500.0,0.00033972,4]
[311696708,1705336311615,-282.48871334,0.00033972,4]
[311696709,1705336311624,-500.0,0.00033972,4]
[311696710,1705336311634,-500.0,0.00033972,4]
[311696711,1705336311643,-500.0,0.00033972,4]
[311696712,1705336311653,-578.69,0.00033972,4]
[311696713,1705336311663,-500.0,0.00033972,4]
[311696714,1705336311673,-250.45020547,0.00033972,4]
[311696715,1705336311683,-500.0,0.00033972,4]
[311696716,1705336311694,-500.0,0.00033972,4]
[311696717,1705336311704,-634.98,0.00033972,4]
[311696718,1705336311714,-500.0,0.00033972,4]
[311696719,1705336311727,-506.11723919,0.00033972,4]
[311696720,1705336311737,-597.4223807,0.00033972,4]
[311696721,1705336311748,-500.0,0.00033972,4]
[311696722,1705336311758,-500.0,0.00033972,4]
[311696723,1705336311769,-500.0,0.00033972,4]
[311696724,1705336311778,-686.23,0.00033972,4]
[311696725,1705336311788,-500.0,0.00033972,4]
[311696726,1705336311798,-500.0,0.00033972,4]
[311696727,1705336311808,-505.31920283,0.00033972,4]
[311696728,1705336311819,-500.0,0.00033972,4]
[311696729,1705336311830,-500.0,0.00033972,4]
[311696730,1705336311839,-567.94954864,0.00033972,4]
[311696731,1705336311849,-500.0,0.00033972,4]
[311696732,1705336311858,-900.67,0.00033972,4]
[311696733,1705336311868,-500.0,0.00033972,4]
[311696734,1705336311877,-500.0,0.00033972,4]
[311696735,1705336311887,-250.0,0.00033972,4]
[311696736,1705336311896,-500.0,0.00033972,4]
[311696737,1705336311907,-500.0,0.00033972,4]
[311696738,1705336311917,-500.0,0.00033972,4]
[311696739,1705336311927,-484.44835973,0.00033972,4]
[311696740,1705336311936,-557.15,0.00033972,4]
[311696741,1705336311946,-500.0,0.00033972,4]
[311696742,1705336311955,-500.0,0.00033972,4]
[311696743,1705336311965,-500.0,0.00033972,4]
[311696744,1705336311975,-500.0,0.00033972,4]
[311696745,1705336311984,-597.84849399,0.00033972,4]
[311696746,1705336311993,-500.0,0.00033972,4]
[311696747,1705336312003,-500.0,0.00033972,4]
[311696748,1705336312012,-500.0,0.00033972,4]
[311696749,1705336312022,-500.0,0.00033972,4]
[311696750,1705336312031,-625.16,0.00033972,4]
[311696751,1705336312041,-518.70678107,0.00033972,15]
[311696752,1705336312050,-549.22189307,0.00033972,4]
[311696753,1705336312059,-500.0,0.00033972,4]
[311696754,1705336312070,-500.0,0.00033972,4]
[311696755,1705336312079,-500.0,0.00033972,4]
[311696756,1705336312088,-500.0,0.00033972,4]
[311696757,1705336312097,-500.0,0.00033972,4]
[311696758,1705336312108,-151.67926834,0.00033972,4]
[311696759,1705336312118,-706.86,0.00033972,4]
[311696760,1705336312127,-500.0,0.00033972,4]
[311696761,1705336312137,-500.0,0.00033972,4]
[311696762,1705336312147,-500.0,0.00033972,4]
[311696763,1705336312156,-923.69,0.00033972,4]
[311696764,1705336312166,-500.0,0.00033972,4]
[311696765,1705336312176,-500.0,0.00033972,4]
[311696766,1705336312186,-500.0,0.00033972,4]
[311696767,1705336312196,-500.0,0.00033972,4]
[311696768,1705336312206,-500.0,0.00033972,4]
[311696769,1705336312215,-500.0,0.00033972,4]
[311696770,1705336312225,-500.0,0.00033972,4]
[311696771,1705336312235,-500.0,0.00033972,4]
[311696772,1705336312245,-500.0,0.00033972,4]
[311696773,1705336312255,-649.21,0.00033972,4]
[311696774,1705336312266,-648.12,0.00033972,4]
[311696775,1705336312275,-500.0,0.00033972,4]
[311696776,1705336312285,-511.50103947,0.00033972,4]
[311696777,1705336312295,-500.0,0.00033972,4]
[311696778,1705336312305,-502.26240726,0.00033972,4]
[311696779,1705336312314,-512.59919,0.00033972,4]
[311696780,1705336312323,-503.88,0.00033972,4]
[311696781,1705336312333,-500.0,0.00033972,4]
[311696782,1705336312343,-500.0,0.00033972,4]
[311696783,1705336312353,-502.86120855,0.00033972,4]
[311696784,1705336312363,-1253.2,0.00033972,4]
[311696785,1705336312372,-500.0,0.00033972,4]
[311696786,1705336312382,-607.59,0.00033972,4]
[311696787,1705336312392,-500.95,0.00033972,4]
[311696788,1705336312401,-500.0,0.00033972,4]
[311696789,1705336312412,-500.0,0.00033972,4]
[311696790,1705336312421,-500.0,0.00033972,4]
[311696791,1705336312431,-571.68,0.00033972,4]
[311696792,1705336312441,-500.0,0.00033972,4]
[311696793,1705336312451,-724.23,0.00033972,4]
[311696794,1705336312461,-938.8,0.00033972,4]
[311696795,1705336312470,-734.97,0.00033972,4]
[311696796,1705336312480,-500.0,0.00033972,4]
[311696797,1705336312490,-538.90628138,0.00033972,4]
[311696798,1705336312500,-7449.57368886,0.00033972,3]
[311696799,1705336312509,-901.15,0.00033972,4]
[311696800,1705336312519,-304.78546858,0.00033972,4]
[311696801,1705336312529,-500.0,0.00033972,4]
[311696802,1705336312539,-510.14277658,0.00033972,4]
[311696803,1705336312548,-820.78,0.00033972,4]
[311696804,1705336312558,-502.92,0.00033972,4]
[311696805,1705336312568,-166.13381598,0.00033972,4]
[311696806,1705336312578,-659.55,0.00033972,4]
[311696807,1705336312588,-500.0,0.00033972,4]
[311696808,1705336312598,-750.12,0.00033972,4]
[311696809,1705336312608,-500.0,0.00033972,4]
[311696810,1705336312619,-500.0,0.00033972,4]
[311696811,1705336312629,-500.0,0.00033972,4]
[311696812,1705336312639,-500.0,0.00033972,4]
[311696813,1705336312649,-500.0,0.00033972,4]
[311696814,1705336312659,-500.0,0.00033972,4]
[311696815,1705336312669,-500.0,0.00033972,4]
[311696816,1705336312680,-520.18,0.00033972,4]
[311696817,1705336312690,-500.0,0.00033972,4]
[311696818,1705336312700,-500.0,0.00033972,4]
[311696819,1705336312710,-545.26,0.00033972,2]
[311696820,1705336312721,-500.0,0.00033972,4]
[311696821,1705336312731,-500.0,0.00033972,4]
[311696822,1705336312744,-500.0,0.00033972,4]
[311696823,1705336312752,-500.0,0.00033972,4]
[311696824,1705336312762,-1042.19815078,0.00033972,4]
[311696825,1705336312771,-707.58,0.00033972,4]
[311696826,1705336312781,-500.0,0.00033972,4]
[311696827,1705336312791,-500.0,0.00033972,4]
[311696828,1705336312801,-567.7,0.00033972,4]
[311696829,1705336312810,-500.0,0.00033972,30]
[311696830,1705336312820,-500.0,0.00033972,4]
[311696831,1705336312830,-500.0,0.00033972,4]
[311696832,1705336312840,-656.15,0.00033972,4]
[311696833,1705336312849,-500.0,0.00033972,4]
[311696834,1705336312858,-776.13,0.00033972,4]
[311696835,1705336312868,-500.0,0.00033972,4]
[311696836,1705336312877,-500.0,0.00033972,4]
[311696837,1705336312887,-500.0,0.00033972,4]
[311696838,1705336312896,-439.0197493,0.00033972,4]
[311696839,1705336312905,-500.0,0.00033972,4]
[311696840,1705336312915,-500.0,0.00033972,4]
[311696841,1705336312925,-563.13,0.00033972,4]
[311696842,1705336312934,-500.0,0.00033972,4]
[311696843,1705336312943,-834.55,0.00033972,4]
[311696844,1705336312953,-500.0,0.00033972,4]
[311696845,1705336312962,-500.0,0.00033972,4]
[311696846,1705336312971,-500.0,0.00033972,4]
[311696847,1705336312980,-500.0,0.00033972,4]
[311696848,1705336312990,-500.0,0.00033972,4]
[311696849,1705336312999,-344.03766646,0.00033972,4]
[311696850,1705336313009,-500.0,0.00033972,4]
[311696851,1705336313018,-500.0,0.00033972,4]
[311696852,1705336313027,-500.0,0.00033972,4]
[311696853,1705336313037,-691.94,0.00033972,4]
[311696854,1705336313046,-500.0,0.00033972,4]
[311696855,1705336313057,-500.0,0.00033972,4]
[311696856,1705336313067,-500.0,0.00033972,4]
[311696857,1705336313076,-500.0,0.00033972,4]
[311696858,1705336313086,-601.24,0.00033972,4]
[311696859,1705336313095,-502.79054935,0.00033972,4]
[311696860,1705336313105,-500.0,0.00033972,4]
[311696861,1705336313115,-500.0,0.00033972,4]
[311696862,1705336313125,-500.0,0.00033972,4]
[311696863,1705336313134,-751.5,0.00033972,4]
[311696864,1705336313143,-500.0,0.00033972,4]
[311696865,1705336313152,-500.0,0.00033972,4]
[311696866,1705336313162,-500.0,0.00033972,4]
[311696867,1705336313171,-500.0,0.00033972,4]
[311696868,1705336313181,-539.8,0.00033972,4]
[311696869,1705336313191,-500.0,0.00033972,4]
[311696870,1705336313200,-500.0,0.00033972,4]
[311696871,1705336313210,-500.0,0.00033972,4]
[311696872,1705336313219,-500.0,0.00033972,4]
[311696873,1705336313229,-521.77,0.00033972,4]
[311696874,1705336313238,-500.0,0.00033972,4]
[311696875,1705336313247,-616.39,0.00033972,4]
[311696876,1705336313256,-500.0,0.00033972,4]
[311696877,1705336313265,-1063.93,0.00033972,4]
[311696878,1705336313275,-588.93,0.00033972,4]
[311696879,1705336313284,-510.27,0.00033972,4]
[311696880,1705336313294,-500.0,0.00033972,4]
[311696881,1705336313303,-2073.95,0.00033972,4]
[311696882,1705336313312,-500.0,0.00033972,4]
[311696883,1705336313322,-186.70355192,0.00033972,4]
[311696884,1705336313331,-500.0,0.00033972,4]
[311696885,1705336313341,-510.3209643,0.00033972,4]
[311696886,1705336313350,-505.19,0.00033972,4]
[311696887,1705336313360,-500.0,0.00033972,4]
[311696888,1705336313369,-500.0,0.00033972,4]
[311696889,1705336313378,-710.42,0.00033972,4]
[311696890,1705336313387,-522.96,0.00033972,4]
[311696891,1705336313397,-521.90003399,0.00033972,4]
[311696892,1705336313406,-500.0,0.00033972,4]
[311696893,1705336313415,-526.99,0.00033972,4]
[311696894,1705336313425,-527.76733198,0.00033972,4]
[311696895,1705336313434,-500.0,0.00033972,4]
[311696896,1705336313540,-506.89,0.00033972,4]
[311696897,1705336313550,-613.49,0.00033972,4]
[311696898,1705336313559,-500.0,0.00033972,4]
[311696899,1705336313570,-1036.93,0.00033972,4]
[311696900,1705336313579,-1501.1,0.00033972,4]
[311696901,1705336313588,-500.0,0.00033972,4]
[311696902,1705336313598,-234.2669022,0.00033972,4]
[311696903,1705336313607,-500.0,0.00033972,4]
[311696904,1705336313616,-500.0,0.00033972,4]
[311696905,1705336313626,-592.59,0.00033972,4]
[311696906,1705336313635,-500.0,0.00033972,4]
[311696907,1705336313644,-509.28430296,0.00033972,4]
[311696908,1705336313654,-500.0,0.00033972,4]
[311696909,1705336313663,-500.0,0.00033972,4]
[311696910,1705336313672,-1025.96,0.00033972,4]
[311696911,1705336313682,-500.0,0.00033972,4]
[311696912,1705336313691,-1085.2,0.00033972,4]
[311696913,1705336313700,-500.0,0.00033972,4]
[311696914,1705336313709,-500.0,0.00033972,4]
[311696915,1705336313719,-511.47857398,0.00033972,4]
[311696916,1705336313728,-500.0,0.00033972,4]
[311696917,1705336313740,-531.57,0.00033972,4]
[311696918,1705336313750,-2270.36,0.00033972,2]
[311696919,1705336313759,-500.0,0.00033972,4]
[311696920,1705336313768,-500.0,0.00033972,4]
[311696921,1705336313777,-162.1882341,0.00033972,4]
[311696922,1705336313786,-629.09,0.00033972,4]
[311696923,1705336313796,-500.0,0.00033972,4]
[311696924,1705336313805,-500.0,0.00033972,4]
[311696925,1705336313815,-695.84,0.00033972,4]
[311696926,1705336313825,-730.27,0.00033972,4]
[311696927,1705336313835,-867.48,0.00033972,4]
[311696928,1705336313844,-500.0,0.00033972,4]
[311696929,1705336313853,-1613.09,0.00033972,4]
[311696930,1705336313862,-188.4615044,0.00033972,4]
[311696931,1705336313871,-500.0,0.00033972,4]
[311696932,1705336313881,-500.0,0.00033972,4]
[311696933,1705336313891,-500.0,0.00033972,2]
[311696934,1705336313900,-500.0,0.00033972,4]
[311696935,1705336313910,-500.0,0.00033972,4]
[311696936,1705336313919,-500.0,0.00033972,4]
[311696937,1705336313929,-500.0,0.00033972,4]
[311696938,1705336313938,-653.82,0.00033972,4]
[311696939,1705336313947,-500.0,0.00033972,4]
[311696940,1705336313957,-1541.23,0.00033972,4]
[311696941,1705336313966,-500.0,0.00033972,4]
[311696942,1705336313975,-500.0,0.00033972,4]
[311696943,1705336313985,-500.0,0.00033972,4]
[311696944,1705336313994,-237.33244151,0.00033972,4]
[311696945,1705336314004,-616.32,0.00033972,4]
[311696946,1705336314013,-500.0,0.00033972,4]
[311696947,1705336314023,-802.92,0.00033972,4]
[311696948,1705336314032,-500.0,0.00033972,4]
[311696949,1705336314041,-500.0,0.00033972,4]
[311696950,1705336314051,-500.0,0.00033972,4]
[311696951,1705336314060,-1105.66,0.00033972,4]
[311696952,1705336314070,-500.0,0.00033972,4]
[311696953,1705336314079,-595.35,0.00033972,4]
[311696954,1705336314088,-500.0,0.00033972,4]
[311696955,1705336314098,-500.0,0.00033972,4]
[311696956,1705336314107,-500.0,0.00033972,4]
[311696957,1705336314116,-500.0,0.00033972,4]
[311696958,1705336314126,-500.0,0.00033972,4]
[311696959,1705336314135,-1560.27,0.00033972,4]
[311696960,1705336314144,-1894.49,0.00033972,4]
[311696961,1705336314153,-500.0,0.00033972,4]
[311696962,1705336314162,-500.0,0.00033972,4]
[311696963,1705336314172,-500.0,0.00033972,4]
[311696964,1705336314181,-668.78,0.00033972,4]
[311696965,1705336314190,-607.41,0.00033972,4]
[311696966,1705336314199,-697.97,0.00033972,4]
[311696967,1705336314209,-525.33203999,0.00033972,4]
[311696968,1705336314218,-1573.79,0.00033972,4]
[311696969,1705336314227,-500.0,0.00033972,4]
[311696970,1705336314236,-1538.55,0.00033972,4]
[311696971,1705336314245,-1419.21,0.00033972,4]
[311696972,1705336314254,-1197.03,0.00033972,4]
[311696973,1705336314264,-956.05,0.00033972,4]
[311696974,1705336314273,-500.0,0.00033972,4]
[311696975,1705336314282,-504.09349334,0.00033972,4]
[311696976,1705336314291,-1230.84,0.00033972,4]
[311696977,1705336314301,-500.0,0.00033972,4]
[311696978,1705336314310,-1911.53,0.00033972,4]
[311696979,1705336314319,-500.0,0.00033972,4]
[311696980,1705336314328,-500.0,0.00033972,4]
[311696981,1705336314338,-500.0,0.00033972,4]
[311696982,1705336314347,-506.37,0.00033972,4]
[311696983,1705336314356,-860.93,0.00033972,4]
[311696984,1705336314365,-1914.55,0.00033972,4]
[311696985,1705336314374,-696.49,0.00033972,4]
[311696986,1705336314383,-500.0,0.00033972,4]
[311696987,1705336314393,-646.71,0.00033972,4]
[311696988,1705336314402,-500.0,0.00033972,4]
[311696989,1705336314412,-500.0,0.00033972,4]
[311696990,1705336314421,-500.0,0.00033972,4]
[311696991,1705336314430,-500.0,0.00033972,4]
[311696992,1705336314439,-1425.64,0.00033972,4]
[311696993,1705336314448,-1205.53,0.00033972,4]
[311696994,1705336314458,-808.83,0.00033972,4]
[311696995,1705336314467,-939.05,0.00033972,4]
[311696996,1705336314476,-500.0,0.00033972,4]
[311696997,1705336314485,-500.0,0.00033972,4]
[311696998,1705336314495,-593.01,0.00033972,4]
[311696999,1705336314504,-832.31,0.00033972,4]
[311697000,1705336314514,-500.0,0.00033972,4]
[311697001,1705336314523,-500.0,0.00033972,4]
[311697002,1705336314533,-500.0,0.00033972,4]
[311697003,1705336314542,-500.0,0.00033972,4]
[311697004,1705336314551,-500.0,0.00033972,4]
[311697005,1705336314560,-1283.39,0.00033972,4]
[311697006,1705336314571,-1109.77,0.00033972,4]
[311697007,1705336314581,-526.29421582,0.00033972,30]
[311697008,1705336314591,-1154.31,0.00033972,4]
[311697009,1705336314600,-500.0,0.00033972,4]
[311697010,1705336314609,-500.0,0.00033972,4]
[311697011,1705336314619,-879.45,0.00033972,4]
[311697012,1705336314628,-500.0,0.00033972,4]
[311697013,1705336314637,-606.16,0.00033972,2]
[311697014,1705336314647,-500.0,0.00033972,4]
[311697015,1705336314656,-500.0,0.00033972,4]
[311697016,1705336314667,-500.0,0.00033972,4]
[311697017,1705336314676,-500.0,0.00033972,4]
[311697018,1705336314686,-617.97,0.00033972,4]
[311697019,1705336314695,-500.0,0.00033972,4]
[311697020,1705336314704,-882.49,0.00033972,4]
[311697021,1705336314714,-1898.02,0.00033972,2]
[311697022,1705336314723,-857.4,0.00033972,4]
[311697023,1705336314732,-500.0,0.00033972,4]
[311697024,1705336314744,-1342.6,0.00033972,4]
[311697025,1705336314753,-500.0,0.00033972,4]
[311697026,1705336314763,-500.0,0.00033972,4]
[311697027,1705336314773,-1110.24,0.00033972,4]
[311697028,1705336314782,-500.0,0.00033972,4]
[311697029,1705336314791,-500.0,0.00033972,4]
[311697030,1705336314801,-500.0,0.00033972,4]
[311697031,1705336314809,-764.69,0.00033972,4]
[311697032,1705336314821,-1293.96,0.00033972,4]
[311697033,1705336314830,-1068.74,0.00033972,4]
[311697034,1705336314839,-500.0,0.00033972,4]
[311697035,1705336314848,-679.58,0.00033972,4]
[311697036,1705336314857,-500.0,0.00033972,4]
[311697037,1705336314866,-877.12,0.00033972,4]
[311697038,1705336314875,-511.40734446,0.00033972,4]
[311697039,1705336314884,-500.0,0.00033972,4]
[311697040,1705336314893,-500.0,0.00033972,4]
[311697041,1705336314902,-500.0,0.00033972,4]
[311697042,1705336314911,-641.03,0.00033972,4]
[311697043,1705336314920,-683.75,0.00033972,4]
[311697044,1705336314929,-502.0900624,0.00033972,4]
[311697045,1705336314938,-500.0,0.00033972,4]
[311697046,1705336314947,-500.0,0.00033972,4]
[311697047,1705336314956,-500.0,0.00033972,4]
[311697048,1705336314965,-1200.54,0.00033972,4]
[311697049,1705336314974,-1331.94,0.00033972,4]
[311697050,1705336314983,-507.32217022,0.00033972,4]
[311697051,1705336314992,-500.0,0.00033972,4]
[311697052,1705336315001,-500.0,0.00033972,4]
[311697053,1705336315012,-843.16,0.00033972,4]
[311697054,1705336315021,-701.07,0.00033972,4]
[311697055,1705336315031,-988.39,0.00033972,4]
[311697056,1705336315041,-512.66476799,0.00033972,4]
[311697057,1705336315050,-500.0,0.00033972,4]
[311697058,1705336315060,-500.0,0.00033972,4]
[311697059,1705336315071,-508.5330137,0.00033972,4]
[311697060,1705336315081,-530.74,0.00033972,4]
[311697061,1705336315090,-1295.17,0.00033972,4]
[311697062,1705336315099,-500.0,0.00033972,4]
[311697063,1705336315108,-1211.16,0.00033972,4]
[311697064,1705336315117,-500.0,0.00033972,4]
[311697065,1705336315127,-500.0,0.00033972,4]
[311697066,1705336315136,-500.0,0.00033972,4]
[311697067,1705336315146,-500.0,0.00033972,4]
[311697068,1705336315155,-501.20119637,0.00033972,4]
[311697069,1705336315164,-733.36,0.00033972,4]
[311697070,1705336315174,-829.03,0.00033972,4]
[311697071,1705336315183,-500.0,0.00033972,4]
[311697072,1705336315192,-1017.61,0.00033972,4]
[311697073,1705336315201,-1134.83,0.00033972,4]
[311697074,1705336315210,-500.0,0.00033972,4]
[311697075,1705336315219,-500.0,0.00033972,4]
[311697076,1705336315228,-500.0,0.00033972,4]
[311697077,1705336315238,-500.0,0.00033972,4]
[311697078,1705336315247,-500.0,0.00033972,4]
[311697079,1705336315256,-500.0,0.00033972,4]
[311697080,1705336315265,-712.41,0.00033972,4]
[311697081,1705336315274,-500.0,0.00033972,4]
[311697082,1705336315283,-1244.04,0.00033972,4]
[311697083,1705336315292,-947.38,0.00033972,4]
[311697084,1705336315301,-521.57046494,0.00033972,4]
[311697085,1705336315310,-500.0,0.00033972,4]
[311697086,1705336315320,-784.85,0.00033972,4]
[311697087,1705336315329,-500.0,0.00033972,4]
[311697088,1705336315338,-757.49,0.00033972,4]
[311697089,1705336315347,-500.0,0.00033972,4]
[311697090,1705336315356,-1544.92,0.00033972,4]
[311697091,1705336315365,-500.0,0.00033972,4]
[311697092,1705336315374,-1146.34,0.00033972,4]
[311697093,1705336315383,-673.14,0.00033972,4]
[311697094,1705336315392,-500.0,0.00033972,4]
[311697095,1705336315402,-1346.84,0.00033972,4]
[311697096,1705336315411,-500.0,0.00033972,4]
[311697097,1705336315422,-1158.4,0.00033972,4]
[311697098,1705336315431,-837.09,0.00033972,4]
[311697099,1705336315441,-716.69,0.00033972,4]
[311697100,1705336315451,-876.57,0.00033972,4]
[311697101,1705336315461,-922.44,0.00033972,4]
[311697102,1705336315471,-500.0,0.00033972,4]
[311697103,1705336315481,-500.0,0.00033972,4]
[311697104,1705336315491,-983.32,0.00033972,4]
[311697105,1705336315501,-500.0,0.00033972,4]